[Event "Live Chess"]
[Site "Chess.com"]
[Date "2023.05.20"]
[Round "-"]
[White "ranvir123"]
[Black "Doge_Dandolo"]
[Result "0-1"]
[WhiteElo "838"]
[BlackElo "2058"]
[TimeControl "300"]
[EndTime "9:13:43 PDT"]
[Termination "Doge_Dandolo won by resignation"]

1. e4 {[%clk 0:04:57.6]} 1... c6 {[%clk 0:04:58.9]} 2. d4 {[%clk 0:04:54.3]}
2... d5 {[%clk 0:04:58.3]} 3. e5 {[%clk 0:04:53.4]} 3... Bf5 {[%clk 0:04:57]} 4.
Nf3 {[%clk 0:04:52.3]} 4... e6 {[%clk 0:04:55.9]} 5. Nc3 {[%clk 0:04:50.7]} 5...
Nd7 {[%clk 0:04:53.6]} 6. Bd3 {[%clk 0:04:49.5]} 6... Bxd3 {[%clk 0:04:51.9]} 7.
Qxd3 {[%clk 0:04:48.6]} 7... f6 {[%clk 0:04:49.7]} 8. O-O {[%clk 0:04:42.9]}
8... Be7 {[%clk 0:04:43.4]} 9. Re1 {[%clk 0:04:35.8]} 9... f5 {[%clk 0:04:40.3]}
10. Bf4 {[%clk 0:04:24.4]} 10... g5 {[%clk 0:04:38.5]} 11. Be3 {[%clk
0:04:16.8]} 11... Nh6 {[%clk 0:04:33.4]} 12. h3 {[%clk 0:04:05.6]} 12... Rg8
{[%clk 0:04:23.4]} 13. a4 {[%clk 0:03:39.1]} 13... Bf8 {[%clk 0:04:19.4]} 14.
Nxg5 {[%clk 0:03:28.5]} 14... Rxg5 {[%clk 0:04:15]} 15. Bxg5 {[%clk 0:03:27.3]}
15... Qxg5 {[%clk 0:04:13.9]} 16. Qg3 {[%clk 0:03:19.9]} 16... Qe7 {[%clk
0:04:10.4]} 17. f4 {[%clk 0:03:09.9]} 17... O-O-O {[%clk 0:04:08.4]} 18. a5
{[%clk 0:03:06]} 18... Bg7 {[%clk 0:04:06.4]} 19. a6 {[%clk 0:03:00.5]} 19... b6
{[%clk 0:03:59.7]} 20. Na4 {[%clk 0:02:53.7]} 20... Rg8 {[%clk 0:03:54]} 21. Qb3
{[%clk 0:02:44]} 21... Bf8 {[%clk 0:03:46.5]} 22. c4 {[%clk 0:02:29.7]} 22...
Qg7 {[%clk 0:03:41.2]} 23. Re2 {[%clk 0:02:23.9]} 23... Be7 {[%clk 0:03:25.2]}
24. c5 {[%clk 0:02:15.9]} 24... b5 {[%clk 0:03:23.1]} 25. Nc3 {[%clk 0:01:53.9]}
25... Bd8 {[%clk 0:03:16.8]} 26. Nxb5 {[%clk 0:01:43.1]} 26... cxb5 {[%clk
0:03:15.2]} 27. Qxb5 {[%clk 0:01:41.7]} 27... Nb8 {[%clk 0:03:13.4]} 28. c6
{[%clk 0:01:21.1]} 28... Qc7 {[%clk 0:03:10.4]} 29. Rc2 {[%clk 0:01:01.8]} 29...
Rg7 {[%clk 0:02:55.3]} 30. Ra3 {[%clk 0:00:47.4]} 30... Qb6 {[%clk 0:02:51.8]}
31. Qxb6 {[%clk 0:00:38.3]} 31... Bxb6 {[%clk 0:02:49.5]} 32. Rb3 {[%clk
0:00:28.9]} 32... Nxa6 {[%clk 0:02:43]} 33. Ra3 {[%clk 0:00:24.8]} 33... Nb4
{[%clk 0:02:37]} 34. Rcc3 {[%clk 0:00:19]} 34... Bxd4+ {[%clk 0:02:28.1]} 0-1

[Event "Live Chess"]
[Site "Chess.com"]
[Date "2023.05.20"]
[Round "-"]
[White "siddu198"]
[Black "Ed_Knox"]
[Result "1-0"]
[WhiteElo "1562"]
[BlackElo "1509"]
[TimeControl "300"]
[EndTime "9:13:45 PDT"]
[Termination "siddu198 won by checkmate"]

1. e4 {[%clk 0:04:58.9]} 1... d5 {[%clk 0:04:58.2]} 2. exd5 {[%clk 0:04:57.8]}
2... Qxd5 {[%clk 0:04:54.7]} 3. Nc3 {[%clk 0:04:57.4]} 3... Qd8 {[%clk
0:04:52.7]} 4. d4 {[%clk 0:04:56.2]} 4... c6 {[%clk 0:04:51.7]} 5. Bf4 {[%clk
0:04:53.9]} 5... Bf5 {[%clk 0:04:49.3]} 6. Nf3 {[%clk 0:04:52.8]} 6... e6 {[%clk
0:04:47.8]} 7. Bd3 {[%clk 0:04:49.9]} 7... Bg6 {[%clk 0:04:44.7]} 8. Bxg6 {[%clk
0:04:47.4]} 8... hxg6 {[%clk 0:04:43.8]} 9. Qd2 {[%clk 0:04:39.8]} 9... Nf6
{[%clk 0:04:39.1]} 10. a3 {[%clk 0:04:37.1]} 10... Nbd7 {[%clk 0:04:30.7]} 11.
O-O-O {[%clk 0:04:35.4]} 11... Be7 {[%clk 0:04:24.3]} 12. Ne5 {[%clk 0:04:31.8]}
12... Nd5 {[%clk 0:04:16.1]} 13. Nxd5 {[%clk 0:04:24.3]} 13... cxd5 {[%clk
0:04:13.3]} 14. g3 {[%clk 0:04:05.1]} 14... O-O {[%clk 0:04:03.7]} 15. h4 {[%clk
0:03:55.8]} 15... Nxe5 {[%clk 0:03:55.9]} 16. dxe5 {[%clk 0:03:42.5]} 16... Qb6
{[%clk 0:03:22.5]} 17. h5 {[%clk 0:03:28.8]} 17... gxh5 {[%clk 0:03:07.6]} 18.
Rxh5 {[%clk 0:03:26.7]} 18... g6 {[%clk 0:02:50.2]} 19. Rh6 {[%clk 0:02:58.2]}
19... Qa6 {[%clk 0:02:35.3]} 20. Rdh1 {[%clk 0:02:51.5]} 20... g5 {[%clk
0:01:59.5]} 21. Rh8+ {[%clk 0:02:05.9]} 21... Kg7 {[%clk 0:01:57.7]} 22. R1h7+
{[%clk 0:02:03.4]} 22... Kg6 {[%clk 0:01:56.4]} 23. Rh6+ {[%clk 0:01:24.1]}
23... Kg7 {[%clk 0:01:55.2]} 24. Bxg5 {[%clk 0:01:16.1]} 24... Rxh8 {[%clk
0:01:49]} 25. Bf6+ {[%clk 0:01:01.3]} 25... Bxf6 {[%clk 0:01:04.9]} 26. exf6+
{[%clk 0:00:57]} 26... Kg8 {[%clk 0:00:38.6]} 27. Qg5+ {[%clk 0:00:49]} 27...
Kf8 {[%clk 0:00:34.1]} 28. Rxh8# {[%clk 0:00:48.9]} 1-0

[Event "Live Chess"]
[Site "Chess.com"]
[Date "2023.05.20"]
[Round "-"]
[White "Daniel_Gliddon_FA"]
[Black "Pandreq"]
[Result "0-1"]
[WhiteElo "1110"]
[BlackElo "1258"]
[TimeControl "300"]
[EndTime "9:13:46 PDT"]
[Termination "Pandreq won on time"]

1. e4 {[%clk 0:04:54.5]} 1... Nf6 {[%clk 0:04:58.4]} 2. e5 {[%clk 0:04:49.6]}
2... Nd5 {[%clk 0:04:56.5]} 3. c4 {[%clk 0:04:46.2]} 3... Nb6 {[%clk 0:04:54.6]}
4. d4 {[%clk 0:04:33.9]} 4... d6 {[%clk 0:04:52.6]} 5. Nf3 {[%clk 0:04:27.1]}
5... Bg4 {[%clk 0:04:45.4]} 6. Be2 {[%clk 0:04:23.6]} 6... Nc6 {[%clk
0:04:39.3]} 7. h3 {[%clk 0:04:03.3]} 7... Bxf3 {[%clk 0:04:37.6]} 8. Bxf3 {[%clk
0:04:01.6]} 8... dxe5 {[%clk 0:04:31.6]} 9. d5 {[%clk 0:03:46.8]} 9... Nd4
{[%clk 0:04:25.7]} 10. Be4 {[%clk 0:03:35.3]} 10... Nxc4 {[%clk 0:04:19.9]} 11.
Qa4+ {[%clk 0:03:30.8]} 11... b5 {[%clk 0:04:13.5]} 12. Qd1 {[%clk 0:03:11.1]}
12... e6 {[%clk 0:03:53.8]} 13. dxe6 {[%clk 0:03:04.4]} 13... Nxe6 {[%clk
0:03:49.8]} 14. Bxa8 {[%clk 0:03:02.6]} 14... Qxd1+ {[%clk 0:03:48]} 15. Kxd1
{[%clk 0:02:59.4]} 15... Bc5 {[%clk 0:03:33.3]} 16. Bc6+ {[%clk 0:02:56.6]}
16... Ke7 {[%clk 0:03:27.2]} 17. Nc3 {[%clk 0:02:54.6]} 17... b4 {[%clk
0:03:13.3]} 18. Nd5+ {[%clk 0:02:47.6]} 18... Kd6 {[%clk 0:03:10.2]} 19. Bb7
{[%clk 0:02:42]} 19... Rb8 {[%clk 0:03:03]} 20. f4 {[%clk 0:02:18.9]} 20... Rxb7
{[%clk 0:02:58]} 21. fxe5+ {[%clk 0:02:16.8]} 21... Kxd5 {[%clk 0:02:56.3]} 22.
Ke2 {[%clk 0:02:12.3]} 22... Nd4+ {[%clk 0:02:53.5]} 23. Kd3 {[%clk 0:02:07.6]}
23... Nxe5+ {[%clk 0:02:46.6]} 24. Kd2 {[%clk 0:01:58.1]} 24... b3 {[%clk
0:02:38.8]} 25. a3 {[%clk 0:01:53.3]} 25... Nc2 {[%clk 0:02:32.9]} 26. Rb1
{[%clk 0:01:47.9]} 26... Be3+ {[%clk 0:02:26.5]} 27. Kd1 {[%clk 0:01:41.2]}
27... Bxc1 {[%clk 0:02:24.1]} 28. Kxc1 {[%clk 0:01:39.3]} 28... Nd3+ {[%clk
0:02:21.4]} 29. Kd2 {[%clk 0:01:35.8]} 29... Kc4 {[%clk 0:02:15]} 30. Rhf1
{[%clk 0:01:23.9]} 30... c6 {[%clk 0:02:10]} 31. Rf3 {[%clk 0:01:17.8]} 31...
Rd7 {[%clk 0:02:01.9]} 32. Ke2 {[%clk 0:01:09.1]} 32... Nd4+ {[%clk 0:01:57.2]}
33. Ke3 {[%clk 0:01:03.4]} 33... Nxf3 {[%clk 0:01:54.6]} 34. Kxf3 {[%clk
0:01:01.2]} 34... Ne5+ {[%clk 0:01:50.5]} 35. Ke4 {[%clk 0:00:59.5]} 35... f6
{[%clk 0:01:45.5]} 36. Rc1+ {[%clk 0:00:57.4]} 36... Kb5 {[%clk 0:01:42.8]} 37.
a4+ {[%clk 0:00:51.9]} 37... Kxa4 {[%clk 0:01:37.4]} 0-1

[Event "Live Chess"]
[Site "Chess.com"]
[Date "2023.05.20"]
[Round "-"]
[White "Albul"]
[Black "GMHarry-youtube"]
[Result "1-0"]
[WhiteElo "2210"]
[BlackElo "2203"]
[TimeControl "300"]
[EndTime "9:13:48 PDT"]
[Termination "Albul won by resignation"]

1. e4 {[%clk 0:04:58.3]} 1... c5 {[%clk 0:04:55.6]} 2. Nc3 {[%clk 0:04:56.6]}
2... d6 {[%clk 0:04:50.2]} 3. d3 {[%clk 0:04:55.3]} 3... Nf6 {[%clk 0:04:48.4]}
4. g3 {[%clk 0:04:53.9]} 4... g6 {[%clk 0:04:48]} 5. Bg2 {[%clk 0:04:53.4]} 5...
Bg7 {[%clk 0:04:47.7]} 6. Be3 {[%clk 0:04:52.7]} 6... O-O {[%clk 0:04:47.6]} 7.
Qd2 {[%clk 0:04:51.8]} 7... Nc6 {[%clk 0:04:46.8]} 8. Bh6 {[%clk 0:04:50.6]}
8... e5 {[%clk 0:04:44.2]} 9. h4 {[%clk 0:04:48.9]} 9... Nh5 {[%clk 0:04:42.6]}
10. Nge2 {[%clk 0:04:45.2]} 10... Nd4 {[%clk 0:04:39.4]} 11. O-O-O {[%clk
0:04:31.4]} 11... b5 {[%clk 0:04:31.7]} 12. Bxg7 {[%clk 0:04:06.8]} 12... Kxg7
{[%clk 0:04:24.6]} 13. Rdf1 {[%clk 0:04:05.9]} 13... b4 {[%clk 0:04:22.2]} 14.
Nd5 {[%clk 0:04:05.3]} 14... f5 {[%clk 0:04:18.8]} 15. Nxd4 {[%clk 0:04:00.7]}
15... exd4 {[%clk 0:04:14.3]} 16. exf5 {[%clk 0:03:55.4]} 16... Bxf5 {[%clk
0:04:09.6]} 17. Nf4 {[%clk 0:03:52.5]} 17... Nxf4 {[%clk 0:03:55.1]} 18. Bxa8
{[%clk 0:03:50.7]} 18... Nxd3+ {[%clk 0:03:55]} 19. cxd3 {[%clk 0:03:48.9]}
19... Qxa8 {[%clk 0:03:53.5]} 20. Re1 {[%clk 0:03:33.4]} 20... Re8 {[%clk
0:03:49.9]} 21. Rxe8 {[%clk 0:03:30.1]} 21... Qxe8 {[%clk 0:03:49.8]} 22. Re1
{[%clk 0:03:28.7]} 22... Qf7 {[%clk 0:03:44.9]} 23. b3 {[%clk 0:02:57.5]} 23...
a5 {[%clk 0:03:39.5]} 24. Qe2 {[%clk 0:02:46]} 24... Kf6 {[%clk 0:03:24.6]} 25.
g4 {[%clk 0:02:25.8]} 25... Be6 {[%clk 0:03:21]} 26. Qf3+ {[%clk 0:02:23.8]}
26... Kg7 {[%clk 0:03:19.4]} 27. Qxf7+ {[%clk 0:02:22.8]} 27... Kxf7 {[%clk
0:03:19.3]} 28. g5 {[%clk 0:02:22]} 28... Bf5 {[%clk 0:03:15]} 29. Kd2 {[%clk
0:02:20.7]} 29... Be6 {[%clk 0:03:14.3]} 30. Re4 {[%clk 0:02:04.6]} 30... Bf5
{[%clk 0:03:11.3]} 31. Re1 {[%clk 0:01:58.4]} 31... Be6 {[%clk 0:03:07.5]} 32.
Kc2 {[%clk 0:01:57.4]} 32... Bf5 {[%clk 0:03:06.3]} 33. Ra1 {[%clk 0:01:55.9]}
33... Bd7 {[%clk 0:02:42.7]} 34. a3 {[%clk 0:01:53.2]} 34... Ke7 {[%clk
0:02:40.6]} 35. axb4 {[%clk 0:01:51.6]} 35... axb4 {[%clk 0:02:39.9]} 36. Ra8
{[%clk 0:01:48.5]} 36... Be8 {[%clk 0:02:36.4]} 37. Kd2 {[%clk 0:01:40.8]} 37...
Kf7 {[%clk 0:02:34.2]} 38. Ra7+ {[%clk 0:01:34.6]} 38... Kg8 {[%clk 0:02:32.4]}
39. Re7 {[%clk 0:01:31.2]} 39... Bf7 {[%clk 0:02:25.9]} 40. Kc2 {[%clk
0:01:29.6]} 40... d5 {[%clk 0:01:51.9]} 41. Rc7 {[%clk 0:01:25.1]} 41... c4
{[%clk 0:01:49]} 42. dxc4 {[%clk 0:01:23.2]} 42... dxc4 {[%clk 0:01:48.7]} 43.
bxc4 {[%clk 0:01:21.9]} 43... Kf8 {[%clk 0:01:45.8]} 44. Kd3 {[%clk 0:01:10.7]}
44... Be6 {[%clk 0:01:37.4]} 45. Kxd4 {[%clk 0:01:07.3]} 45... b3 {[%clk
0:01:15.9]} 46. Rb7 {[%clk 0:01:04.2]} 46... b2 {[%clk 0:01:06]} 47. Rxb2 {[%clk
0:01:02.8]} 47... Ke7 {[%clk 0:01:05.9]} 48. Rb7+ {[%clk 0:01:01]} 48... Bd7
{[%clk 0:01:05.8]} 49. Ke5 {[%clk 0:00:57.6]} 49... Ke8 {[%clk 0:01:01.6]} 50.
c5 {[%clk 0:00:56]} 50... Bc6 {[%clk 0:00:59.9]} 51. Rxh7 {[%clk 0:00:53.8]}
51... Kf8 {[%clk 0:00:58.8]} 52. Kd6 {[%clk 0:00:51.8]} 52... Be4 {[%clk
0:00:57]} 53. c6 {[%clk 0:00:50.5]} 53... Kg8 {[%clk 0:00:55.3]} 54. Re7 {[%clk
0:00:49.2]} 54... Kf8 {[%clk 0:00:52.2]} 55. Rxe4 {[%clk 0:00:47.7]} 55... Kg8
{[%clk 0:00:46.9]} 56. c7 {[%clk 0:00:46.4]} 56... Kh7 {[%clk 0:00:45.4]} 57.
Re7+ {[%clk 0:00:45.1]} 57... Kg8 {[%clk 0:00:44.3]} 1-0

[Event "Live Chess"]
[Site "Chess.com"]
[Date "2023.05.20"]
[Round "-"]
[White "domrobson"]
[Black "IanCalvert2"]
[Result "1-0"]
[WhiteElo "1728"]
[BlackElo "1612"]
[TimeControl "300"]
[EndTime "9:13:49 PDT"]
[Termination "domrobson won by resignation"]

1. d4 {[%clk 0:04:58.5]} 1... d5 {[%clk 0:04:56.7]} 2. c4 {[%clk 0:04:57.6]}
2... c6 {[%clk 0:04:54.7]} 3. Nf3 {[%clk 0:04:57.3]} 3... Nf6 {[%clk 0:04:53]}
4. Nc3 {[%clk 0:04:57]} 4... dxc4 {[%clk 0:04:50.7]} 5. e3 {[%clk 0:04:51.7]}
5... b5 {[%clk 0:04:47.9]} 6. a4 {[%clk 0:04:47.7]} 6... b4 {[%clk 0:04:46.4]}
7. Na2 {[%clk 0:04:46]} 7... a5 {[%clk 0:04:45.2]} 8. Bxc4 {[%clk 0:04:44.3]}
8... Ba6 {[%clk 0:04:43.9]} 9. Qb3 {[%clk 0:04:38.7]} 9... Bxc4 {[%clk 0:04:42]}
10. Qxc4 {[%clk 0:04:37.4]} 10... Qd5 {[%clk 0:04:40.7]} 11. Qxd5 {[%clk
0:04:32.7]} 11... cxd5 {[%clk 0:04:39]} 12. O-O {[%clk 0:04:32.3]} 12... e6
{[%clk 0:04:33.5]} 13. Bd2 {[%clk 0:04:31.5]} 13... Bd6 {[%clk 0:04:28.3]} 14.
Rac1 {[%clk 0:04:22.6]} 14... O-O {[%clk 0:04:25]} 15. b3 {[%clk 0:04:19.6]}
15... Ne4 {[%clk 0:04:08.1]} 16. Rc2 {[%clk 0:04:16.9]} 16... Nd7 {[%clk
0:03:59.7]} 17. Rfc1 {[%clk 0:04:12]} 17... Ndf6 {[%clk 0:03:50.1]} 18. Rc6
{[%clk 0:04:05.4]} 18... Rfd8 {[%clk 0:03:47.8]} 19. Be1 {[%clk 0:04:00.7]}
19... Kf8 {[%clk 0:03:32.3]} 20. Kf1 {[%clk 0:03:31.9]} 20... Ke7 {[%clk
0:03:29.1]} 21. Ke2 {[%clk 0:03:30.7]} 21... Kd7 {[%clk 0:03:23.5]} 22. Ne5+
{[%clk 0:03:26.4]} 22... Bxe5 {[%clk 0:03:21.7]} 23. dxe5 {[%clk 0:03:25.9]}
23... Ne8 {[%clk 0:03:19.2]} 24. f3 {[%clk 0:03:04.8]} 24... Nc3+ {[%clk
0:03:01]} 25. Bxc3 {[%clk 0:02:34.9]} 25... bxc3 {[%clk 0:02:59.2]} 26. R1xc3
{[%clk 0:02:32.1]} 26... Rdb8 {[%clk 0:02:52.8]} 27. f4 {[%clk 0:02:25.6]} 27...
Rb7 {[%clk 0:02:44.7]} 28. Nc1 {[%clk 0:02:23.3]} 28... Nc7 {[%clk 0:02:35.7]}
29. Nd3 {[%clk 0:02:12.9]} 29... Na6 {[%clk 0:02:33.9]} 30. Rxa6 {[%clk
0:02:01.6]} 30... Rxa6 {[%clk 0:02:31.2]} 31. Nc5+ {[%clk 0:02:01.3]} 1-0

[Event "Live Chess"]
[Site "Chess.com"]
[Date "2023.05.20"]
[Round "-"]
[White "PaulyD81"]
[Black "hello505050"]
[Result "0-1"]
[WhiteElo "1062"]
[BlackElo "1085"]
[TimeControl "300"]
[EndTime "9:13:52 PDT"]
[Termination "hello505050 won on time"]

1. d4 {[%clk 0:04:59.6]} 1... d5 {[%clk 0:04:58.5]} 2. c4 {[%clk 0:04:57.8]}
2... dxc4 {[%clk 0:04:57]} 3. Nf3 {[%clk 0:04:53.8]} 3... Nc6 {[%clk 0:04:55.4]}
4. e3 {[%clk 0:04:51.5]} 4... Nf6 {[%clk 0:04:50.4]} 5. Nc3 {[%clk 0:04:40.9]}
5... Bg4 {[%clk 0:04:48.2]} 6. Bxc4 {[%clk 0:04:38.5]} 6... e6 {[%clk
0:04:42.9]} 7. O-O {[%clk 0:04:37.2]} 7... Bd6 {[%clk 0:04:37.7]} 8. Qb3 {[%clk
0:04:35.2]} 8... O-O {[%clk 0:04:33.8]} 9. Qxb7 {[%clk 0:04:31.7]} 9... Qd7
{[%clk 0:04:25.9]} 10. Bb5 {[%clk 0:04:21.8]} 10... a6 {[%clk 0:04:22.5]} 11.
Qxc6 {[%clk 0:04:05.7]} 11... Qxc6 {[%clk 0:04:19.1]} 12. Bxc6 {[%clk
0:04:05.6]} 12... Rab8 {[%clk 0:04:18.1]} 13. Ba4 {[%clk 0:03:56.2]} 13... Bxf3
{[%clk 0:04:13.4]} 14. gxf3 {[%clk 0:03:53.2]} 14... e5 {[%clk 0:03:59.8]} 15.
dxe5 {[%clk 0:03:44.2]} 15... Bxe5 {[%clk 0:03:59.7]} 16. f4 {[%clk 0:03:34.3]}
16... Bd6 {[%clk 0:03:54.3]} 17. Bc6 {[%clk 0:03:20.5]} 17... Rb6 {[%clk
0:03:48.4]} 18. Bf3 {[%clk 0:03:05.6]} 18... Rc8 {[%clk 0:03:36.5]} 19. b3
{[%clk 0:03:00.5]} 19... c5 {[%clk 0:03:34.5]} 20. Bb2 {[%clk 0:02:50.3]} 20...
g6 {[%clk 0:03:28]} 21. Na4 {[%clk 0:02:41.4]} 21... Rb4 {[%clk 0:03:20.1]} 22.
Bxf6 {[%clk 0:02:39.4]} 22... c4 {[%clk 0:03:14.9]} 23. Rfc1 {[%clk 0:02:16.2]}
23... Rd8 {[%clk 0:02:53.8]} 24. Rxc4 {[%clk 0:02:12.2]} 24... Rxc4 {[%clk
0:02:50.7]} 25. bxc4 {[%clk 0:02:11.1]} 25... Rb8 {[%clk 0:02:49.5]} 26. Be5
{[%clk 0:01:54.3]} 26... Bxe5 {[%clk 0:02:46.6]} 27. fxe5 {[%clk 0:01:53.6]}
27... Rb4 {[%clk 0:02:46.5]} 28. Nc5 {[%clk 0:01:33.2]} 28... Rxc4 {[%clk
0:02:43.3]} 29. Nxa6 {[%clk 0:01:29]} 29... Ra4 {[%clk 0:02:38.5]} 30. Nc5
{[%clk 0:01:26.5]} 30... Ra5 {[%clk 0:02:37.9]} 31. Nd7 {[%clk 0:01:19.8]} 31...
Ra7 {[%clk 0:02:35.4]} 32. Nf6+ {[%clk 0:01:17.7]} 32... Kh8 {[%clk 0:02:31.2]}
33. Bd5 {[%clk 0:01:14.9]} 33... Ra5 {[%clk 0:02:24.1]} 34. Bb3 {[%clk
0:01:08.6]} 34... Rxe5 {[%clk 0:02:21.2]} 35. Rc1 {[%clk 0:00:49.3]} 35... Kg7
{[%clk 0:02:16.4]} 36. Nd5 {[%clk 0:00:39.9]} 36... Rg5+ {[%clk 0:02:13.7]} 37.
Kf1 {[%clk 0:00:29.8]} 37... Rh5 {[%clk 0:02:10.8]} 38. Nf4 {[%clk 0:00:19.5]}
38... Rxh2 {[%clk 0:02:07.2]} 39. Rc7 {[%clk 0:00:19.2]} 39... Kh6 {[%clk
0:01:49.9]} 40. Rxf7 {[%clk 0:00:19.1]} 40... Rh1+ {[%clk 0:01:48.2]} 41. Ke2
{[%clk 0:00:17.1]} 41... Rc1 {[%clk 0:01:40]} 42. Re7 {[%clk 0:00:14.2]} 42...
g5 {[%clk 0:01:34.1]} 43. Re6+ {[%clk 0:00:11]} 43... Kg7 {[%clk 0:01:32.7]} 44.
Nh5+ {[%clk 0:00:07.9]} 44... Kf8 {[%clk 0:01:28.4]} 45. Rh6 {[%clk 0:00:06.6]}
45... Rc7 {[%clk 0:01:24.6]} 0-1

[Event "Live Chess"]
[Site "Chess.com"]
[Date "2023.05.20"]
[Round "-"]
[White "grillage"]
[Black "toxic_rabbit"]
[Result "0-1"]
[WhiteElo "1827"]
[BlackElo "1997"]
[TimeControl "300"]
[EndTime "9:13:52 PDT"]
[Termination "toxic_rabbit won by checkmate"]

1. d4 {[%clk 0:04:57.6]} 1... d5 {[%clk 0:04:59.1]} 2. Nf3 {[%clk 0:04:54.9]}
2... e6 {[%clk 0:04:57.7]} 3. c4 {[%clk 0:04:52.7]} 3... Nf6 {[%clk 0:04:56.4]}
4. cxd5 {[%clk 0:04:51.6]} 4... exd5 {[%clk 0:04:55.4]} 5. Nc3 {[%clk 0:04:51]}
5... c6 {[%clk 0:04:52.6]} 6. Qc2 {[%clk 0:04:47.7]} 6... Bd6 {[%clk 0:04:51.6]}
7. Bg5 {[%clk 0:04:44.4]} 7... O-O {[%clk 0:04:50.2]} 8. e3 {[%clk 0:04:43.6]}
8... Bg4 {[%clk 0:04:48.4]} 9. Bd3 {[%clk 0:04:33.8]} 9... Nbd7 {[%clk
0:04:46.3]} 10. O-O {[%clk 0:04:31.8]} 10... Qb8 {[%clk 0:04:43]} 11. h3 {[%clk
0:04:22.1]} 11... Bxf3 {[%clk 0:04:41]} 12. gxf3 {[%clk 0:04:21.3]} 12... h6
{[%clk 0:04:40.1]} 13. Bh4 {[%clk 0:04:14.5]} 13... g5 {[%clk 0:04:38.2]} 14.
Bg3 {[%clk 0:04:13.1]} 14... Bxg3 {[%clk 0:04:37.5]} 15. fxg3 {[%clk 0:04:11.3]}
15... Qxg3+ {[%clk 0:04:37.4]} 16. Qg2 {[%clk 0:04:10.4]} 16... Qxg2+ {[%clk
0:04:35.6]} 17. Kxg2 {[%clk 0:04:09.8]} 17... Rfe8 {[%clk 0:04:34.7]} 18. Rae1
{[%clk 0:04:07.4]} 18... Re7 {[%clk 0:04:33.1]} 19. Kf2 {[%clk 0:04:03.7]} 19...
Rae8 {[%clk 0:04:31]} 20. e4 {[%clk 0:03:59.1]} 20... dxe4 {[%clk 0:04:29.9]}
21. fxe4 {[%clk 0:03:58.8]} 21... Nh5 {[%clk 0:04:27.4]} 22. e5 {[%clk
0:03:49.9]} 22... Nf4 {[%clk 0:04:25.6]} 23. Bf5 {[%clk 0:03:47.1]} 23... Nb6
{[%clk 0:04:23.7]} 24. Ne4 {[%clk 0:03:40.8]} 24... Nd3+ {[%clk 0:04:17.9]} 25.
Kg2 {[%clk 0:03:37.2]} 25... Nxe1+ {[%clk 0:04:16.9]} 26. Rxe1 {[%clk
0:03:36.4]} 26... Nd5 {[%clk 0:04:15.5]} 27. Nd6 {[%clk 0:03:28.6]} 27... Rd8
{[%clk 0:04:12]} 28. Ne4 {[%clk 0:03:18.5]} 28... Nf4+ {[%clk 0:04:09.5]} 29.
Kh2 {[%clk 0:03:15.4]} 29... Rxd4 {[%clk 0:04:08.7]} 30. Nf6+ {[%clk 0:03:11.3]}
30... Kg7 {[%clk 0:04:02.2]} 31. Ng4 {[%clk 0:03:10.6]} 31... Rd2+ {[%clk
0:03:59.7]} 32. Kh1 {[%clk 0:03:08.4]} 32... Nxh3 {[%clk 0:03:54.3]} 33. Nf6
{[%clk 0:02:47]} 33... Nf4 {[%clk 0:03:44.4]} 34. Re3 {[%clk 0:02:39.8]} 34...
Kf8 {[%clk 0:03:29.5]} 35. Ra3 {[%clk 0:02:36.4]} 35... Rxe5 {[%clk 0:03:24.8]}
36. Rxa7 {[%clk 0:02:33.2]} 36... Re1# {[%clk 0:03:23.2]} 0-1

[Event "Live Chess"]
[Site "Chess.com"]
[Date "2023.05.20"]
[Round "-"]
[White "SirEntrails"]
[Black "friarnator"]
[Result "0-1"]
[WhiteElo "504"]
[BlackElo "2021"]
[TimeControl "300"]
[EndTime "9:13:55 PDT"]
[Termination "friarnator won by resignation"]

1. e4 {[%clk 0:04:59.1]} 1... Nf6 {[%clk 0:04:58.1]} 2. Nc3 {[%clk 0:04:55.1]}
2... d5 {[%clk 0:04:56.8]} 3. exd5 {[%clk 0:04:53.7]} 3... Nxd5 {[%clk
0:04:56.7]} 4. Nxd5 {[%clk 0:04:51.2]} 4... Qxd5 {[%clk 0:04:56.6]} 5. Nf3
{[%clk 0:04:47.5]} 5... c6 {[%clk 0:04:52.5]} 6. d3 {[%clk 0:04:43]} 6... Bg4
{[%clk 0:04:50.9]} 7. Be2 {[%clk 0:04:30.6]} 7... e6 {[%clk 0:04:50]} 8. c3
{[%clk 0:04:21.1]} 8... Be7 {[%clk 0:04:47.2]} 9. Nd4 {[%clk 0:04:17.8]} 9...
Qxg2 {[%clk 0:04:42.4]} 10. Rf1 {[%clk 0:04:13.1]} 10... Bh3 {[%clk 0:04:20.4]}
11. Kd2 {[%clk 0:04:04.4]} 11... O-O {[%clk 0:04:04.5]} 12. Rg1 {[%clk
0:04:03.6]} 12... Qxf2 {[%clk 0:03:55]} 13. Kc2 {[%clk 0:03:56.8]} 13... c5
{[%clk 0:03:45.5]} 14. Nb5 {[%clk 0:03:52.3]} 14... Nc6 {[%clk 0:03:42.6]} 15.
Bh6 {[%clk 0:03:40.5]} 15... Bf6 {[%clk 0:03:36]} 16. Rc1 {[%clk 0:03:33.9]}
16... Kh8 {[%clk 0:03:30.1]} 17. Kb1 {[%clk 0:03:30.2]} 17... gxh6 {[%clk
0:03:25.8]} 18. Bh5 {[%clk 0:03:21.9]} 18... Bg5 {[%clk 0:03:15.2]} 19. d4
{[%clk 0:03:06]} 19... Bxc1 {[%clk 0:03:10.6]} 20. Qxc1 {[%clk 0:03:00.3]} 20...
cxd4 {[%clk 0:03:06.5]} 21. Rf1 {[%clk 0:02:54.2]} 21... Bxf1 {[%clk 0:03:02.8]}
22. cxd4 {[%clk 0:02:48.5]} 22... Bxb5 {[%clk 0:02:59.6]} 0-1

[Event "Live Chess"]
[Site "Chess.com"]
[Date "2023.05.20"]
[Round "-"]
[White "nigelst"]
[Black "hturner40"]
[Result "0-1"]
[WhiteElo "1847"]
[BlackElo "1872"]
[TimeControl "300"]
[EndTime "9:14:01 PDT"]
[Termination "hturner40 won by checkmate"]

1. e4 {[%clk 0:04:56.3]} 1... Nc6 {[%clk 0:04:58.3]} 2. Nf3 {[%clk 0:04:54.9]}
2... e5 {[%clk 0:04:56.9]} 3. Bb5 {[%clk 0:04:53.4]} 3... f5 {[%clk 0:04:55.3]}
4. O-O {[%clk 0:04:45.2]} 4... fxe4 {[%clk 0:04:50.5]} 5. Bxc6 {[%clk
0:04:44.2]} 5... dxc6 {[%clk 0:04:41.7]} 6. Nxe5 {[%clk 0:04:43.1]} 6... Nf6
{[%clk 0:04:40.5]} 7. d4 {[%clk 0:04:38.4]} 7... Bd6 {[%clk 0:04:34.2]} 8. Bf4
{[%clk 0:04:13.4]} 8... O-O {[%clk 0:04:31.6]} 9. Bg3 {[%clk 0:04:11.8]} 9...
Bf5 {[%clk 0:04:13.2]} 10. Qe2 {[%clk 0:03:58.3]} 10... Qe7 {[%clk 0:03:53.8]}
11. c3 {[%clk 0:03:38.2]} 11... Rae8 {[%clk 0:03:18.6]} 12. Nd2 {[%clk
0:03:33.2]} 12... Nd7 {[%clk 0:03:07.9]} 13. Nxd7 {[%clk 0:03:16.5]} 13... Qxd7
{[%clk 0:02:59.2]} 14. Bxd6 {[%clk 0:03:12.3]} 14... cxd6 {[%clk 0:02:56.2]} 15.
Nc4 {[%clk 0:03:03.7]} 15... Be6 {[%clk 0:02:44.1]} 16. Ne3 {[%clk 0:03:00.2]}
16... d5 {[%clk 0:02:42]} 17. Rac1 {[%clk 0:02:43.6]} 17... b5 {[%clk
0:02:34.3]} 18. a3 {[%clk 0:02:41.1]} 18... Rf4 {[%clk 0:02:24.6]} 19. b3 {[%clk
0:02:23.4]} 19... Bg4 {[%clk 0:02:16]} 20. Qd2 {[%clk 0:02:19.5]} 20... Re6
{[%clk 0:01:40.7]} 21. Nxd5 {[%clk 0:02:09.9]} 21... Rf3 {[%clk 0:01:28.2]} 22.
Ne3 {[%clk 0:02:01.6]} 22... Rg6 {[%clk 0:01:19.5]} 23. Nxg4 {[%clk 0:01:52.5]}
23... Qxg4 {[%clk 0:01:15.7]} 24. g3 {[%clk 0:01:43.7]} 24... Rh6 {[%clk
0:01:05]} 25. Rfd1 {[%clk 0:00:52.2]} 25... Qh3 {[%clk 0:00:59.7]} 26. d5 {[%clk
0:00:40.6]} 26... Qxh2+ {[%clk 0:00:54.8]} 27. Kf1 {[%clk 0:00:39.5]} 27... e3
{[%clk 0:00:39.7]} 28. Qe2 {[%clk 0:00:31.8]} 28... Rxf2+ {[%clk 0:00:37.4]} 29.
Qxf2 {[%clk 0:00:30.8]} 29... Qxf2# {[%clk 0:00:35.8]} 0-1